fUST/lending_fUST_20250504
["ID","MTS","AMOUNT","RATE_DAILY","PERIOD"]
[359786331,1746348647603,-279.95076216,0.00035616,15]
[359786332,1746348647612,-403.27869304,0.00035616,15]
[359786333,1746348647621,-407.38875121,0.00035616,15]
[359786334,1746348647630,-400.0,0.00035616,15]
[359786335,1746348647639,-400.0,0.00035616,15]
[359786336,1746348647649,-423.83275853,0.00035616,15]
[359786337,1746348647659,-412.14631028,0.00035616,15]
[359786338,1746348647669,-395.0,0.00035616,15]
[359786339,1746348647678,-400.0,0.00035616,15]
[359786340,1746348647689,-400.0,0.00035616,15]
[359786341,1746348647699,-400.0,0.00035616,15]
[359786342,1746348647709,-420.07695456,0.00035616,15]
[359786343,1746348647718,-413.13083652,0.00035616,15]
[359786344,1746348647728,-409.45826319,0.00035616,15]
[359786345,1746348647738,-407.91716723,0.00035616,15]
[359786346,1746348647747,-417.79672234,0.00035616,15]
[359786347,1746348647757,-403.94680575,0.00035616,15]
[359786348,1746348647766,-412.50855167,0.00035616,15]
[359786349,1746348647775,-415.03345771,0.00035616,15]
[359786350,1746348647784,-400.0,0.00035616,15]
[359786351,1746348647794,-400.0,0.00035616,15]
[359786352,1746348647803,-400.0,0.00035616,15]
[359786353,1746348647812,-400.0,0.00035616,15]
[359786354,1746348647821,-400.0,0.00035616,15]
[359786355,1746348647831,-400.0,0.00035616,15]
[359786356,1746348647919,-400.0,0.00035616,15]
[359786357,1746348647929,-400.0,0.00035616,15]
[359786358,1746348647938,-400.0,0.00035616,15]
[359786359,1746348647947,-400.0,0.00035616,15]
[359786360,1746348647956,-190.24,0.00035616,15]
[359786361,1746348647966,-405.19556639,0.00035616,15]
[359786362,1746348647975,-294.435758,0.00035616,14]
[359786363,1746348647984,-318.82165588,0.00035616,15]
[359786364,1746348647993,-294.435758,0.00035616,14]
[359786365,1746348648002,-400.0,0.00035616,15]
[359786366,1746348648011,-408.67064972,0.00035616,15]
[359786367,1746348648020,-400.0,0.00035616,15]
[359786368,1746348648030,-400.0,0.00035616,15]
[359786369,1746348648039,-400.0,0.00035616,15]
[359786370,1746348648049,-400.0,0.00035616,15]
[359786371,1746348648058,-400.0,0.00035616,15]
[359786372,1746348648067,-205.05,0.00035616,15]
[359786373,1746348648077,-294.435758,0.00035616,14]
[359786374,1746348648086,-294.435758,0.00035616,14]
[359786375,1746348648096,-422.30833154,0.00035616,15]
[359786376,1746348648105,-400.0,0.00035616,15]
[359786377,1746348648114,-400.0,0.00035616,15]
[359786378,1746348648124,-400.0,0.00035616,15]
[359786379,1746348648134,-400.0,0.00035616,15]
[359786380,1746348648144,-400.0,0.00035616,15]
[359786381,1746348648154,-515.92597355,0.00035616,15]
[359786382,1746348648164,-410.088303,0.00035616,15]
[359786383,1746348648173,-400.0,0.00035616,15]
[359786384,1746348648183,-400.0,0.00035616,15]
[359786385,1746348648193,-411.16342644,0.00035616,15]
[359786386,1746348648202,-151.0,0.00035616,14]
[359786387,1746348648211,-400.0,0.00035616,15]
[359786388,1746348648221,-151.0,0.00035616,14]
[359786389,1746348648230,-400.0,0.00035616,15]
[359786390,1746348648240,-422.89116241,0.00035616,15]
[359786391,1746348648250,-400.0,0.00035616,15]
[359786392,1746348648260,-400.0,0.00035616,15]
[359786393,1746348648270,-191.38552843,0.00035616,15]
[359786394,1746348648279,-221.48980542,0.00035616,15]
[359786395,1746348648289,-400.0,0.00035616,15]
[359786396,1746348648298,-400.0,0.00035616,15]
[359786397,1746348648308,-400.0,0.00035616,15]
[359786398,1746348648317,-400.0,0.00035616,15]
[359786399,1746348648327,-400.0,0.00035616,15]
[359786400,1746348648336,-241.43938243,0.00035616,15]
[359786401,1746348648346,-400.0,0.00035616,15]
[359786402,1746348648355,-400.0,0.00035616,15]
[359786403,1746348648365,-400.0,0.00035616,15]
[359786404,1746348648374,-400.0,0.00035616,15]
[359786405,1746348648384,-400.0,0.00035616,15]
[359786406,1746348648393,-400.0,0.00035616,15]
[359786407,1746348648403,-400.0,0.00035616,15]
[359786408,1746348648412,-456.67255883,0.00035616,15]
[359786409,1746348648422,-400.0,0.00035616,15]
[359786410,1746348648431,-400.0,0.00035616,15]
[359786411,1746348648441,-400.0,0.00035616,15]
[359786412,1746348648451,-400.0,0.00035616,15]
[359786413,1746348648460,-400.0,0.00035616,15]
[359786414,1746348648470,-400.0,0.00035616,15]
[359786415,1746348648479,-173.23,0.00035616,15]
[359786416,1746348648489,-400.0,0.00035616,15]
[359786417,1746348648498,-415.72912555,0.00035616,15]
[359786418,1746348648508,-415.40308653,0.00035616,15]
[359786419,1746348648517,-400.0,0.00035616,15]
[359786420,1746348648527,-400.0,0.00035616,15]
[359786421,1746348648536,-400.0,0.00035616,15]
[359786422,1746348648546,-499.80963097,0.00035616,15]
[359786423,1746348648555,-400.0,0.00035616,15]
[359786424,1746348648565,-400.0,0.00035616,15]
[359786425,1746348648575,-473.35915559,0.00035616,15]
[359786426,1746348648584,-400.0,0.00035616,15]
[359786427,1746348648593,-400.0,0.00035616,15]
[359786428,1746348648603,-400.0,0.00035616,15]
[359786429,1746348648612,-407.88954185,0.00035616,15]
[359786430,1746348648622,-400.0,0.00035616,15]
[359786431,1746348648631,-548.70866768,0.00035616,15]
[359786432,1746348648640,-405.17160136,0.00035616,15]
[359786433,1746348648649,-411.25640366,0.00035616,15]
[359786434,1746348648658,-400.0,0.00035616,15]
[359786435,1746348648668,-400.0,0.00035616,15]
[359786436,1746348648677,-400.0,0.00035616,15]
[359786437,1746348648688,-164.84358485,0.00035616,15]
[359786438,1746348648697,-299.39812049,0.00035616,15]
[359786439,1746348648707,-400.0,0.00035616,15]
[359786440,1746348648717,-400.0,0.00035616,15]
[359786441,1746348648726,-416.72374233,0.00035616,15]
[359786442,1746348648736,-406.80772685,0.00035616,15]
[359786443,1746348648746,-413.05479017,0.00035616,15]
[359786444,1746348648756,-419.05184702,0.00035616,15]
[359786445,1746348648766,-406.28113006,0.00035616,15]
[359786446,1746348648775,-406.38091001,0.00035616,15]
[359786447,1746348648785,-407.04052055,0.00035616,15]
[359786448,1746348648794,-409.24430521,0.00035616,15]
[359786449,1746348648804,-400.0,0.00035616,15]
[359786450,1746348648813,-400.0,0.00035616,15]
[359786451,1746348648828,-400.0,0.00035616,15]
[359786452,1746348648844,-400.0,0.00035616,15]
[359786453,1746348648859,-222.48679016,0.00035616,15]
[359786454,1746348648875,-400.0,0.00035616,15]
[359786455,1746348648886,-422.910513,0.00035616,15]
[359786456,1746348648902,-400.0,0.00035616,15]
[359786457,1746348648915,-400.0,0.00035616,15]
[359786458,1746348648928,-400.0,0.00035616,15]
[359786459,1746348648943,-400.0,0.00035616,15]
[359786460,1746348648956,-406.31769421,0.00035616,15]
[359786461,1746348648970,-400.0,0.00035616,15]
[359786462,1746348648984,-275.56732555,0.00035616,15]
[359786463,1746348648997,-508.81,0.00035616,15]
[359786464,1746348649010,-405.89054963,0.00035616,15]
[359786465,1746348649022,-506.3616708,0.00035616,15]
[359786466,1746348649035,-316.93904391,0.00035616,15]
[359786467,1746348649048,-400.0,0.00035616,15]
[359786468,1746348649061,-400.0,0.00035616,15]
[359786469,1746348649075,-400.0,0.00035616,15]
[359786470,1746348649088,-392.72651673,0.00035616,15]
[359786471,1746348649098,-414.44828302,0.00035616,15]
[359786472,1746348649109,-400.0,0.00035616,15]
[359786473,1746348649121,-400.0,0.00035616,15]
[359786474,1746348649135,-400.0,0.00035616,15]
[359786475,1746348649148,-400.0,0.00035616,15]
[359786476,1746348649161,-329.02814772,0.00035616,15]
[359786477,1746348649174,-400.0,0.00035616,15]
[359786478,1746348649188,-400.0,0.00035616,15]
[359786479,1746348649201,-408.11413855,0.00035616,15]
[359786480,1746348649215,-423.68562238,0.00035616,15]
[359786481,1746348649226,-400.0,0.00035616,15]
[359786482,1746348649237,-400.0,0.00035616,15]
[359786483,1746348649247,-400.0,0.00035616,15]
[359786484,1746348649259,-493.67466292,0.00035616,15]
[359786485,1746348649273,-388.84634786,0.00035616,15]
[359786486,1746348649287,-400.0,0.00035616,15]
[359786487,1746348649303,-400.0,0.00035616,15]
[359786488,1746348649315,-413.12073136,0.00035616,15]
[359786489,1746348649327,-263.5448878,0.00035616,15]
[359786490,1746348649340,-406.12998368,0.00035616,15]
[359786491,1746348649354,-407.54055667,0.00035616,15]
[359786492,1746348649366,-412.47630115,0.00035616,15]
[359786493,1746348649380,-409.21454816,0.00035616,15]
[359786494,1746348649391,-518.97416096,0.00035616,15]
[359786495,1746348649404,-400.0,0.00035616,15]
[359786496,1746348649416,-400.0,0.00035616,15]
[359786497,1746348649427,-400.0,0.00035616,15]
[359786498,1746348649439,-416.7271939,0.00035616,15]
[359786499,1746348649451,-408.46294089,0.00035616,15]
[359786500,1746348649463,-400.0,0.00035616,15]
[359786501,1746348649476,-400.0,0.00035616,15]
[359786502,1746348649489,-400.0,0.00035616,15]
[359786503,1746348649501,-400.0,0.00035616,15]
[359786504,1746348649514,-221.37340283,0.00035616,15]
[359786505,1746348649527,-400.0,0.00035616,15]
[359786506,1746348649538,-400.0,0.00035616,15]
[359786507,1746348649550,-400.0,0.00035616,15]
[359786508,1746348649563,-400.0,0.00035616,15]
[359786509,1746348649575,-400.0,0.00035616,15]
[359786510,1746348649588,-263.37124642,0.00035616,15]
[359786511,1746348649602,-400.0,0.00035616,15]
[359786512,1746348649614,-400.0,0.00035616,15]
[359786513,1746348649625,-400.0,0.00035616,15]
[359786514,1746348649636,-400.0,0.00035616,15]
[359786515,1746348649647,-400.0,0.00035616,15]
[359786516,1746348649659,-300.83839501,0.00035616,15]
[359786517,1746348649670,-400.0,0.00035616,15]
[359786518,1746348649682,-400.0,0.00035616,15]
[359786519,1746348649694,-400.0,0.00035616,15]
[359786520,1746348649705,-400.0,0.00035616,15]
[359786521,1746348649717,-400.0,0.00035616,15]
[359786522,1746348649729,-400.0,0.00035616,15]
[359786523,1746348649741,-400.0,0.00035616,15]
[359786524,1746348649752,-400.0,0.00035616,15]
[359786525,1746348649764,-400.0,0.00035616,15]
[359786526,1746348649775,-400.0,0.00035616,15]
[359786527,1746348649788,-468.6,0.00035616,15]
[359786528,1746348649800,-401.51758173,0.00035616,15]
[359786529,1746348649812,-400.0,0.00035616,15]
[359786530,1746348649823,-400.0,0.00035616,15]
[359786531,1746348649834,-400.0,0.00035616,15]
[359786532,1746348649846,-400.0,0.00035616,15]
[359786533,1746348649857,-400.0,0.00035616,15]
[359786534,1746348649872,-185.36,0.00035616,15]
[359786535,1746348649883,-401.58187426,0.00035616,15]
[359786536,1746348649896,-151.0,0.00035616,14]
[359786537,1746348649908,-400.0,0.00035616,15]
[359786538,1746348649920,-400.0,0.00035616,15]
[359786539,1746348649931,-400.0,0.00035616,15]
[359786540,1746348649943,-400.0,0.00035616,15]
[359786541,1746348649955,-455.63281569,0.00035616,15]
[359786542,1746348649966,-400.0,0.00035616,15]
[359786543,1746348650095,-400.0,0.00035616,15]
[359786544,1746348650110,-407.67782991,0.00035616,15]
[359786545,1746348650120,-400.0,0.00035616,15]
[359786546,1746348650129,-319.89281019,0.00035616,15]
[359786547,1746348650139,-313.10562646,0.00035616,15]
[359786548,1746348650148,-403.06674268,0.00035616,15]
[359786549,1746348650158,-400.0,0.00035616,15]
[359786550,1746348650168,-400.0,0.00035616,15]
[359786551,1746348650177,-400.0,0.00035616,15]
[359786552,1746348650187,-171.31765569,0.00035616,15]
[359786553,1746348650196,-414.93447691,0.00035616,15]
[359786554,1746348650206,-408.69621081,0.00035616,15]
[359786555,1746348650216,-400.0,0.00035616,15]
[359786556,1746348650226,-413.25162267,0.00035616,15]
[359786557,1746348650236,-400.0,0.00035616,15]
[359786558,1746348650246,-400.0,0.00035616,15]
[359786559,1746348650256,-400.0,0.00035616,15]
[359786560,1746348650265,-400.0,0.00035616,15]
[359786561,1746348650275,-324.30621513,0.00035616,15]
[359786562,1746348650284,-407.13171683,0.00035616,15]
[359786563,1746348650294,-410.78120111,0.00035616,15]
[359786564,1746348650303,-416.76646134,0.00035616,15]
[359786565,1746348650313,-400.0,0.00035616,15]
[359786566,1746348650322,-400.0,0.00035616,15]
[359786567,1746348650332,-400.0,0.00035616,15]
[359786568,1746348650343,-400.0,0.00035616,15]
[359786569,1746348650354,-400.0,0.00035616,15]
[359786570,1746348650364,-408.99778756,0.00035616,15]
[359786571,1746348650373,-400.0,0.00035616,15]
[359786572,1746348650384,-400.0,0.00035616,15]
[359786573,1746348650394,-400.0,0.00035616,15]
[359786574,1746348650404,-400.0,0.00035616,15]
[359786575,1746348650413,-418.23136305,0.00035616,15]
[359786576,1746348650423,-400.0,0.00035616,15]
[359786577,1746348650432,-400.0,0.00035616,15]
[359786578,1746348650442,-400.0,0.00035616,15]
[359786579,1746348650452,-400.0,0.00035616,15]
[359786580,1746348650461,-400.0,0.00035616,15]
[359786581,1746348650471,-400.0,0.00035616,15]
[359786582,1746348650480,-400.0,0.00035616,15]
[359786583,1746348650490,-400.0,0.00035616,15]
[359786584,1746348650500,-400.0,0.00035616,15]
[359786585,1746348650509,-400.0,0.00035616,15]
[359786586,1746348650519,-400.0,0.00035616,15]
[359786587,1746348650529,-400.0,0.00035616,15]
[359786588,1746348650539,-409.4257465,0.00035616,15]
[359786589,1746348650549,-400.0,0.00035616,15]
[359786590,1746348650558,-400.0,0.00035616,15]
[359786591,1746348650568,-500.0,0.00035616,15]
[359786592,1746348650578,-212.49977766,0.00035616,15]
[359786593,1746348650588,-400.0,0.00035616,15]
[359786594,1746348650597,-408.99261083,0.00035616,15]
[359786595,1746348650607,-400.0,0.00035616,15]
[359786596,1746348650617,-400.0,0.00035616,15]
[359786597,1746348650626,-400.0,0.00035616,15]
[359786598,1746348650635,-270.19764601,0.00035616,15]
[359786599,1746348650645,-424.53813326,0.00035616,15]
[359786600,1746348650655,-400.0,0.00035616,15]
[359786601,1746348650665,-400.0,0.00035616,15]
[359786602,1746348650674,-233.69973724,0.00035616,15]
[359786603,1746348650683,-400.0,0.00035616,15]
[359786604,1746348650693,-400.0,0.00035616,15]
[359786605,1746348650702,-400.0,0.00035616,15]
[359786606,1746348650712,-400.0,0.00035616,15]
[359786607,1746348650721,-400.0,0.00035616,15]
[359786608,1746348650731,-400.0,0.00035616,15]
[359786609,1746348650741,-210.12,0.00035616,15]
[359786610,1746348650751,-409.21233004,0.00035616,15]
[359786611,1746348650760,-415.97191453,0.00035616,15]
[359786612,1746348650770,-400.0,0.00035616,15]
[359786613,1746348650779,-400.0,0.00035616,15]
[359786614,1746348650789,-400.0,0.00035616,15]
[359786615,1746348650799,-400.0,0.00035616,15]
[359786616,1746348650808,-400.0,0.00035616,15]
[359786617,1746348650817,-400.0,0.00035616,15]
[359786618,1746348650827,-400.0,0.00035616,15]
[359786619,1746348650837,-400.0,0.00035616,15]
[359786620,1746348650846,-400.0,0.00035616,15]
[359786621,1746348650856,-400.0,0.00035616,15]
[359786622,1746348650867,-336.60803558,0.00035616,15]
[359786623,1746348650877,-414.03278274,0.00035616,15]
[359786624,1746348650887,-412.25091656,0.00035616,15]
[359786625,1746348650897,-412.04266105,0.00035616,15]
[359786626,1746348650907,-411.80599282,0.00035616,15]
[359786627,1746348650917,-420.43014484,0.00035616,15]
[359786628,1746348650926,-413.95301629,0.00035616,15]
[359786629,1746348650935,-178.817725,0.00035616,14]
[359786630,1746348650945,-412.27300135,0.00035616,15]
[359786631,1746348650955,-407.12259125,0.00035616,15]
[359786632,1746348650964,-480.14419069,0.00035616,15]
[359786633,1746348650974,-447.31017794,0.00035616,15]
[359786634,1746348650983,-400.0,0.00035616,15]
[359786635,1746348650993,-400.0,0.00035616,15]
[359786636,1746348651003,-454.20708341,0.00035616,15]
[359786637,1746348651012,-412.16972892,0.00035616,15]
[359786638,1746348651022,-151.0,0.00035616,14]
[359786639,1746348651032,-414.44307644,0.00035616,15]
[359786640,1746348651041,-400.0,0.00035616,15]
[359786641,1746348651051,-415.86251978,0.00035616,15]
[359786642,1746348651060,-414.34716446,0.00035616,15]
[359786643,1746348651070,-408.49072707,0.00035616,15]
[359786644,1746348651079,-409.58166953,0.00035616,15]
[359786645,1746348651089,-408.22338573,0.00035616,15]
[359786646,1746348651099,-413.98894416,0.00035616,15]
[359786647,1746348651108,-414.95,0.00035616,15]
[359786648,1746348651118,-448.39536938,0.00035616,15]
[359786649,1746348651127,-400.0,0.00035616,15]
[359786650,1746348651137,-390.10244723,0.00035616,15]
[359786651,1746348651147,-414.93887682,0.00035616,15]
[359786652,1746348651157,-412.22048603,0.00035616,15]
[359786653,1746348651167,-400.0,0.00035616,15]
[359786654,1746348651178,-408.73768662,0.00035616,15]
[359786655,1746348651187,-400.0,0.00035616,15]
[359786656,1746348651197,-400.0,0.00035616,15]
[359786657,1746348651208,-400.0,0.00035616,15]
[359786658,1746348651218,-400.0,0.00035616,15]
[359786659,1746348651227,-400.0,0.00035616,15]
[359786660,1746348651238,-400.0,0.00035616,15]
[359786661,1746348651248,-368.36,0.00035616,15]
[359786662,1746348651258,-400.0,0.00035616,15]
[359786663,1746348651267,-400.0,0.00035616,15]
[359786664,1746348651276,-208.75600608,0.00035616,15]
[359786665,1746348651286,-400.0,0.00035616,15]
[359786666,1746348651296,-400.0,0.00035616,15]
[359786667,1746348651306,-400.0,0.00035616,15]
[359786668,1746348651315,-400.0,0.00035616,15]
[359786669,1746348651325,-400.0,0.00035616,15]
[359786670,1746348651335,-400.0,0.00035616,15]
[359786671,1746348651345,-490.44736224,0.00035616,15]
[359786672,1746348651355,-400.0,0.00035616,15]
[359786673,1746348651365,-400.0,0.00035616,15]
[359786674,1746348651375,-400.0,0.00035616,15]
[359786675,1746348651385,-400.0,0.00035616,15]
[359786676,1746348651395,-400.0,0.00035616,15]
[359786677,1746348651405,-400.0,0.00035616,15]
[359786678,1746348651415,-417.08,0.00035616,15]
[359786679,1746348651426,-281.67319749,0.00035616,15]
[359786680,1746348651436,-417.08,0.00035616,15]
[359786681,1746348651446,-417.08,0.00035616,15]
[359786682,1746348651456,-416.64992144,0.00035616,15]
[359786683,1746348651466,-417.08,0.00035616,15]
[359786684,1746348651475,-417.08,0.00035616,15]
[359786685,1746348651485,-417.08,0.00035616,15]
[359786686,1746348651496,-417.08,0.00035616,15]
[359786687,1746348651506,-417.08,0.00035616,15]
[359786688,1746348651515,-417.08,0.00035616,15]
[359786689,1746348651525,-407.16369777,0.00035616,15]
[359786690,1746348651534,-417.08,0.00035616,15]
[359786691,1746348651544,-400.0,0.00035616,15]
[359786692,1746348651554,-417.08,0.00035616,15]
[359786693,1746348651563,-400.0,0.00035616,15]
[359786694,1746348651572,-417.08,0.00035616,15]
[359786695,1746348651582,-400.0,0.00035616,15]
[359786696,1746348651591,-400.0,0.00035616,15]
[359786697,1746348651601,-400.0,0.00035616,15]
[359786698,1746348651611,-400.0,0.00035616,15]
[359786699,1746348651620,-417.08,0.00035616,15]
[359786700,1746348651630,-400.0,0.00035616,15]
[359786701,1746348651639,-400.0,0.00035616,15]
[359786702,1746348651648,-417.08,0.00035616,15]
[359786703,1746348651658,-400.0,0.00035616,15]
[359786704,1746348651667,-400.0,0.00035616,15]
[359786705,1746348651676,-417.08,0.00035616,15]
[359786706,1746348651685,-400.0,0.00035616,15]
[359786707,1746348651695,-400.0,0.00035616,15]
[359786708,1746348651704,-417.08,0.00035616,15]
[359786709,1746348651714,-400.0,0.00035616,15]
[359786710,1746348651724,-400.0,0.00035616,15]
[359786711,1746348651734,-400.0,0.00035616,15]
[359786712,1746348651743,-417.08,0.00035616,15]
[359786713,1746348651753,-400.0,0.00035616,15]
[359786714,1746348651762,-400.0,0.00035616,15]
[359786715,1746348651772,-400.0,0.00035616,15]
[359786716,1746348651781,-375.20711918,0.00035616,15]
[359786717,1746348651791,-417.08,0.00035616,15]
[359786718,1746348651801,-400.0,0.00035616,15]
[359786719,1746348651810,-400.0,0.00035616,15]
[359786720,1746348651819,-417.08,0.00035616,15]
[359786721,1746348651829,-400.0,0.00035616,15]
[359786722,1746348651839,-400.0,0.00035616,15]
[359786723,1746348651849,-417.08,0.00035616,15]
[359786724,1746348651858,-400.0,0.00035616,15]
[359786725,1746348651871,-400.0,0.00035616,15]
[359786726,1746348651880,-417.08,0.00035616,15]
[359786727,1746348651890,-400.0,0.00035616,15]
[359786728,1746348651901,-400.0,0.00035616,15]
[359786729,1746348651910,-417.08,0.00035616,15]
[359786730,1746348651919,-474.00537622,0.00035616,15]
[359786731,1746348651929,-400.0,0.00035616,15]
[359786732,1746348651939,-417.08,0.00035616,15]
[359786733,1746348651949,-400.0,0.00035616,15]
[359786734,1746348651958,-400.0,0.00035616,15]
[359786735,1746348651968,-417.11905502,0.00035616,15]
[359786736,1746348651978,-400.0,0.00035616,15]
[359786737,1746348651988,-400.0,0.00035616,15]
[359786738,1746348651998,-400.0,0.00035616,15]
[359786739,1746348652009,-241.77886695,0.00035616,15]
[359786740,1746348652019,-400.0,0.00035616,15]
[359786741,1746348652029,-400.0,0.00035616,15]
[359786742,1746348652038,-400.0,0.00035616,15]
[359786743,1746348652048,-400.0,0.00035616,15]
[359786744,1746348652058,-400.0,0.00035616,15]
[359786745,1746348652067,-400.0,0.00035616,15]
[359786746,1746348652078,-400.0,0.00035616,15]
[359786747,1746348652088,-400.0,0.00035616,15]
[359786748,1746348652098,-400.0,0.00035616,15]
[359786749,1746348652108,-400.0,0.00035616,15]
[359786750,1746348652119,-400.0,0.00035616,15]
[359786751,1746348652130,-400.0,0.00035616,15]
[359786752,1746348652140,-400.0,0.00035616,15]
[359786753,1746348652150,-400.0,0.00035616,15]
[359786754,1746348652159,-400.0,0.00035616,15]
[359786755,1746348652168,-400.0,0.00035616,15]
[359786756,1746348652178,-400.0,0.00035616,15]
[359786757,1746348652187,-400.0,0.00035616,15]
[359786758,1746348652196,-400.0,0.00035616,15]
[359786759,1746348652206,-391.70811656,0.00035616,15]
[359786760,1746348652215,-400.0,0.00035616,15]
[359786761,1746348652225,-369.58896796,0.00035616,15]
[359786762,1746348652234,-400.0,0.00035616,15]
[359786763,1746348652243,-400.0,0.00035616,15]
[359786764,1746348652253,-400.61,0.00035616,15]
[359786765,1746348652262,-400.0,0.00035616,15]
[359786766,1746348652272,-404.67023275,0.00035616,15]
[359786767,1746348652281,-388.56463616,0.00035616,15]
[359786768,1746348652290,-400.0,0.00035616,15]
[359786769,1746348652300,-407.62937399,0.00035616,15]
[359786770,1746348652310,-400.0,0.00035616,15]
[359786771,1746348652320,-400.0,0.00035616,15]
[359786772,1746348652330,-400.0,0.00035616,15]
[359786773,1746348652339,-400.0,0.00035616,15]
[359786774,1746348652349,-400.0,0.00035616,15]
[359786775,1746348652359,-400.0,0.00035616,15]
[359786776,1746348652369,-400.0,0.00035616,15]
[359786777,1746348652380,-400.0,0.00035616,15]
[359786778,1746348652390,-400.0,0.00035616,15]
[359786779,1746348652400,-400.0,0.00035616,15]
[359786780,1746348652410,-400.0,0.00035616,15]
[359786781,1746348652419,-400.0,0.00035616,15]
[359786782,1746348652429,-400.0,0.00035616,15]
[359786783,1746348652439,-419.4158402,0.00035616,15]
[359786784,1746348652449,-400.0,0.00035616,15]
[359786785,1746348652458,-427.24582446,0.00035616,15]
[359786786,1746348652468,-168.86554665,0.00035616,15]
[359786787,1746348652478,-400.0,0.00035616,15]
[359786788,1746348652487,-400.0,0.00035616,15]
[359786789,1746348652498,-400.0,0.00035616,15]
[359786790,1746348652595,-400.0,0.00035616,15]
[359786791,1746348652607,-400.0,0.00035616,15]
[359786792,1746348652616,-400.0,0.00035616,15]
[359786793,1746348652626,-400.0,0.00035616,15]
[359786794,1746348652635,-400.0,0.00035616,15]
[359786795,1746348652645,-400.0,0.00035616,15]
[359786796,1746348652654,-400.0,0.00035616,15]
[359786797,1746348652663,-400.0,0.00035616,15]
[359786798,1746348652673,-400.0,0.00035616,15]
[359786799,1746348652682,-400.0,0.00035616,15]
[359786800,1746348652691,-400.0,0.00035616,15]
[359786801,1746348652701,-400.0,0.00035616,15]
[359786802,1746348652710,-400.0,0.00035616,15]
[359786803,1746348652720,-400.0,0.00035616,15]
[359786804,1746348652729,-400.0,0.00035616,15]
[359786805,1746348652739,-400.0,0.00035616,15]
[359786806,1746348652748,-400.0,0.00035616,15]
[359786807,1746348652757,-400.0,0.00035616,15]
[359786808,1746348652767,-400.0,0.00035616,15]
[359786809,1746348652776,-400.0,0.00035616,15]
[359786810,1746348652786,-400.0,0.00035616,15]
[359786811,1746348652795,-400.0,0.00035616,15]
[359786812,1746348652804,-400.0,0.00035616,15]
[359786813,1746348652813,-400.0,0.00035616,15]
[359786814,1746348652822,-400.0,0.00035616,15]
[359786815,1746348652831,-170.69119107,0.00035616,15]
[359786816,1746348652840,-400.0,0.00035616,15]
[359786817,1746348652849,-400.0,0.00035616,15]
[359786818,1746348652858,-400.0,0.00035616,15]
[359786819,1746348652871,-400.0,0.00035616,15]
[359786820,1746348652881,-376.81830925,0.00035616,15]
[359786821,1746348652891,-400.0,0.00035616,15]
[359786822,1746348652900,-548.34860228,0.00035616,15]
[359786823,1746348652909,-407.94165391,0.00035616,15]
[359786824,1746348652921,-400.0,0.00035616,15]
[359786825,1746348652930,-400.0,0.00035616,15]
[359786826,1746348652941,-400.0,0.00035616,15]
[359786827,1746348652950,-400.0,0.00035616,15]
[359786828,1746348652960,-400.0,0.00035616,15]
[359786829,1746348652970,-231.8,0.00035616,15]
[359786830,1746348652979,-400.0,0.00035616,15]